bitfinex/quotes_ETHUSD_20250331
["timestamp","ask_amount","ask_price","bid_price","bid_amount"]
[1743390124270,0.1,1817.9,1817.8,6.30945]
[1743390124458,0.1,1817.9,1817.8,6.85945]
[1743390127071,0.1,1817.9,1817.8,21.35945]
[1743390130382,0.1,1817.9,1817.8,5.50115]
[1743390130673,0.1,1817.9,1817.8,11.08215]
[1743390131774,0.8958,1817.9,1817.8,11.08215]
[1743390134787,0.8958,1817.9,1817.7,37.26524]
[1743390134998,0.8958,1817.9,1817.7,31.764]
[1743390135163,5.60086,1817.9,1817.7,37.345]
[1743390135364,1.316786,1817.8,1817.7,37.345]
[1743390135567,0.7567,1817.8,1817.7,37.345]
[1743390136169,0.7567,1817.8,1817.7,42.84645]
[1743390136456,0.1,1817.9,1817.8,5.50115]
[1743390140477,0.1,1817.9,1817.8,6.05115]
[1743390141772,0.1,1817.9,1817.8,6.86095]
[1743390141968,1e-05,1817.9,1817.8,6.86095]
[1743390142997,1e-05,1817.9,1817.8,9.86095]
[1743390143169,1e-05,1817.9,1817.8,10.98300798]
[1743390144300,0.7567,1818.8,1818.4,5.49923]
[1743390144596,0.7567,1818.8,1818.7,5.49824]
[1743390144801,0.7567,1818.8,1818.6,5.49862]
[1743390144963,0.7567,1818.8,1818.7,5.49843]
[1743390147595,0.7567,1818.8,1818.4,5.4991]
[1743390147771,0.8073,1818.8,1818.7,5.578]
[1743390148369,9.71336214,1818.8,1817.9,6.3322]
[1743390148575,5.49858,1818.7,1818.0,5.578]
[1743390148775,0.8073,1818.6,1818.3,5.49941]
[1743390148976,0.8073,1818.6,1818.4,5.578]
[1743390149501,0.8073,1818.5,1818.4,5.578]
[1743390150211,0.8073,1818.3,1818.0,31.748]
[1743390150383,9.30737,1818.2,1818.1,5.578]
[1743390150580,11.60816323,1818.2,1818.1,5.578]
[1743390150772,9.8573,1818.2,1818.1,5.578]
[1743390151115,9.8573,1818.2,1818.0,31.748]
[1743390151271,8.50024,1818.1,1818.0,31.748]
[1743390151605,9.30754,1818.1,1818.0,31.748]
[1743390151805,0.8073,1818.1,1818.0,31.748]
[1743390152693,0.8073,1818.1,1818.0,37.24855]
[1743390152890,3.784,1818.3,1818.0,37.24834]
[1743390153208,3.784,1818.3,1818.0,37.24831]
[1743390153394,9.28369,1818.3,1818.0,31.748]
[1743390153594,5.49998,1818.2,1818.0,31.748]
[1743390153804,6.28469,1818.0,1817.6,6.61789424]
[1743390154010,0.784,1817.9,1817.6,11.07975]
[1743390154211,0.784,1817.9,1817.6,11.07954]
[1743390154386,0.784,1817.9,1817.7,5.50132]
[1743390154707,6.834,1818.1,1817.9,5.50085]
[1743390155004,6.834,1818.1,1818.0,5.50055]
[1743390155223,0.784,1818.3,1818.0,11.07755]
[1743390155509,0.784,1818.3,1818.1,5.50012]
[1743390156325,0.784,1818.3,1817.9,5.50084]
[1743390156492,6.28378,1818.3,1818.1,5.578]
[1743390156675,0.784,1818.2,1818.1,5.578]
[1743390157074,8.50027,1818.1,1817.9,5.578]
[1743390157307,0.784,1818.0,1817.9,5.578]
[1743390158008,0.784,1818.0,1817.9,11.07885]
[1743390158694,3.0,1818.1,1817.9,11.07885]
[1743390158695,0.784,1818.2,1817.9,11.07885]
[1743390158895,0.784,1818.2,1817.9,16.5797]
[1743390159292,3.0,1818.3,1818.1,5.50024]
[1743390159507,3.784,1818.4,1818.1,5.50024]
[1743390159690,9.28351,1818.4,1818.0,5.50041]
[1743390159876,3.784,1818.4,1818.0,5.50034]
[1743390160072,3.784,1818.4,1818.2,5.49983]
[1743390160297,3.784,1818.4,1818.0,5.50035]
[1743390160506,3.784,1818.4,1818.0,20.00035]
[1743390160711,9.28336,1818.4,1818.1,5.577]
[1743390161005,3.784,1818.4,1818.2,5.49992]
[1743390161192,0.784,1818.4,1818.3,5.49964]
[1743390161396,5.49866,1818.7,1818.3,5.49964]
[1743390161576,3.784,1818.6,1818.3,5.49943]
[1743390162507,3.784,1818.6,1818.4,5.49912]
[1743390162682,3.784,1818.6,1818.3,5.49943]
[1743390163278,9.28273,1818.6,1818.3,5.49943]
[1743390163711,3.784,1818.6,1818.3,5.49943]
[1743390164582,3.784,1818.6,1818.3,10.9989]
[1743390165377,3.784,1818.6,1818.5,5.49903]
[1743390165598,3.0,1818.6,1818.5,5.49903]
[1743390165799,6.8116,1818.8,1818.6,5.49859]
[1743390165994,6.8116,1818.8,1818.5,11.07502]
[1743390167309,6.8116,1818.8,1818.6,5.49866]
[1743390167609,3.7616,1818.8,1818.5,11.0749]
[1743390167991,3.7616,1818.8,1818.5,16.57375]
[1743390168778,0.7616,1818.8,1818.5,16.57375]
[1743390168977,0.7616,1818.8,1818.5,11.07485]
[1743390169213,0.7616,1818.8,1818.5,16.57367]
[1743390169596,0.7616,1818.8,1818.5,11.07482]
[1743390170814,0.7616,1818.8,1818.5,16.57373]
[1743390171013,0.7616,1818.8,1818.5,11.07482]
[1743390171212,0.7616,1818.8,1818.5,5.576]
[1743390171413,5.49888,1818.6,1818.5,5.575]
[1743390171714,12.31048,1818.6,1818.5,5.575]
[1743390172311,15.31048,1818.6,1818.2,5.49982]
[1743390172612,15.31048,1818.6,1818.3,5.575]
[1743390174514,20.80944,1818.6,1818.3,5.575]
[1743390174712,20.80944,1818.6,1818.0,1.11068247]
[1743390174713,0.7616,1818.4,1818.0,1.11068247]
[1743390174886,8.95052441,1818.4,1817.9,37.25272]
[1743390175213,6.26189,1818.1,1817.9,31.752]
[1743390175715,6.26245,1817.9,1817.8,5.575]
[1743390175883,12.31245,1817.9,1817.4,6.28446]
[1743390176089,12.31245,1817.9,1817.6,5.574]
[1743390177291,17.8136,1817.9,1817.6,5.574]
[1743390177490,5.5018,1817.6,1817.4,5.575]
[1743390177697,3.0,1817.5,1817.3,5.575]
[1743390181620,8.92325703,1817.6,1817.3,5.575]
[1743390181791,8.5018,1817.6,1817.3,5.575]
[1743390183215,8.5018,1817.6,1817.3,20.075]
[1743390183436,3.0,1817.4,1817.3,20.075]
[1743390183922,6.05,1817.5,1817.4,5.50236]
[1743390184694,6.05,1817.5,1817.4,20.00236]
[1743390185395,6.05,1818.0,1817.7,5.50135]
[1743390185719,3.7763,1818.1,1817.8,5.575]
[1743390185892,3.7763,1818.1,1817.6,6.30835]
[1743390186092,13.49869841,1818.1,1817.7,20.075]
[1743390186525,13.49869841,1818.1,1817.7,5.575]
[1743390187223,3.0,1817.9,1817.8,5.575]
[1743390187521,3.7763,1818.1,1817.8,5.575]
[1743390187903,3.7763,1818.1,1817.8,11.07604]
[1743390188109,3.7763,1818.1,1817.8,5.575]
[1743390189120,3.0,1818.0,1817.8,11.07594]
[1743390189325,6.05,1818.2,1817.8,11.07594]
[1743390189727,3.0,1818.1,1818.0,5.50055]
[1743390190038,5.49858,1818.7,1818.1,5.49999]
[1743390190039,6.05,1818.6,1818.1,5.49999]
[1743390190243,3.0,1818.6,1818.2,5.574]
[1743390190593,3.0,1818.4,1818.3,5.574]
[1743390190944,3.0,1818.2,1818.1,5.574]
[1743390194819,3.0,1818.3,1818.1,11.07405]
[1743390195128,6.05,1818.4,1818.1,11.07405]
[1743390195531,6.05,1818.4,1818.1,5.574]
[1743390196504,6.05,1818.4,1818.2,5.573]
[1743390196701,0.8311,1818.3,1817.8,6.31123]
[1743390196906,6.05,1818.4,1817.9,11.07382]
[1743390197334,6.05,1818.4,1817.9,5.573]
[1743390198031,6.05,1818.4,1817.9,16.57448]
[1743390198449,6.05,1818.4,1818.0,5.50029]
[1743390198618,6.05,1818.4,1818.1,6.31021]
[1743390198963,6.05,1818.4,1818.3,5.49964]
[1743390199104,6.05,1818.4,1818.3,11.88174]
[1743390199303,3.62044441,1818.9,1818.3,6.3821]
[1743390199304,6.9811,1818.9,1818.3,6.3821]
[1743390199546,6.15,1818.9,1818.6,5.49872]
[1743390199846,6.15,1818.9,1818.7,11.88042]
[1743390200020,0.1,1818.9,1818.7,6.3821]
[1743390201620,0.1,1818.9,1818.8,5.571]
[1743390202751,0.1,1818.9,1818.7,0.8101]
[1743390202902,0.8311,1818.8,1818.6,31.749]
[1743390203107,0.8311,1818.8,1818.7,5.571]
[1743390203651,3.1,1818.9,1818.7,5.571]
[1743390203947,9.15,1818.9,1818.7,5.571]
[1743390204549,9.15,1818.9,1818.7,6.118868]
[1743390204753,9.15,1818.9,1818.7,5.571]
[1743390205550,9.15,1818.9,1818.7,11.06933]
[1743390205753,9.15,1818.9,1818.7,5.571]
[1743390206986,9.15,1818.9,1818.7,20.071]
[1743390207283,9.15,1818.9,1818.7,25.56935]
[1743390207485,9.15,1818.9,1818.7,11.06935]
[1743390208486,9.15,1818.9,1818.7,5.571]
[1743390209938,0.1,1818.9,1818.7,5.571]
[1743390210873,0.1,1818.9,1818.7,11.06931]
[1743390211376,0.1,1818.9,1818.7,5.571]
[1743390211577,0.1,1818.9,1818.7,11.06933]
[1743390211872,0.1,1818.9,1818.7,11.06929]
[1743390212377,0.1,1818.9,1818.7,11.06922]
[1743390212670,0.1,1818.9,1818.8,5.49813]
[1743390213064,0.1,1818.9,1818.7,11.06922]
[1743390213973,0.1,1818.9,1818.8,5.49813]
[1743390214467,0.1,1818.9,1818.8,6.32113]
[1743390214774,0.1,1818.9,1818.8,6.87113]
[1743390215777,0.1,1818.9,1818.8,21.37113]
[1743390216779,0.1,1818.9,1818.8,21.78200229]
[1743390217378,0.1,1818.9,1818.8,26.93813]
[1743390218155,0.1,1818.9,1818.8,21.37113]
[1743390218474,0.1,1818.9,1818.8,26.93813]
[1743390220973,0.1,1818.9,1818.8,27.34607823]
[1743390222513,0.1,1818.9,1818.8,28.43966983]
[1743390224835,0.02022072,1818.9,1818.8,31.43966983]
[1743390225717,7.2e-07,1818.9,1818.8,31.43966983]
[1743390225917,0.05,1819.9,1819.7,5.49528]
[1743390225918,0.8596,1819.9,1819.7,5.49528]
[1743390226147,0.8596,1819.9,1819.8,5.565]
[1743390228701,0.8596,1819.9,1819.5,31.732]
[1743390228702,9.04028837,1819.9,1819.5,31.732]
[1743390228905,6.30501,1819.7,1819.6,5.564]
[1743390229345,9.30501,1819.7,1819.6,5.564]
[1743390229560,3.8096,1819.7,1819.6,5.564]
[1743390231216,9.3051,1819.7,1819.5,5.563]
[1743390231429,6.30532,1819.6,1819.2,1.12164975]
[1743390231633,6.30532,1819.6,1819.1,31.729]
[1743390231848,0.8096,1819.6,1819.2,5.563]
[1743390232518,6.30533,1819.6,1819.2,5.563]
[1743390232713,5.49573,1819.6,1819.2,5.563]
[1743390232946,6.32164,1819.5,1819.2,5.563]
[1743390233319,0.8256,1819.5,1819.2,5.563]
[1743390233857,6.32176,1819.5,1819.2,5.563]
[1743390234357,6.8756,1819.5,1819.2,5.563]
[1743390235838,6.8756,1819.5,1819.2,11.05988]
[1743390236137,6.8756,1819.5,1819.3,5.4966]
[1743390236364,6.8756,1819.5,1819.2,5.563]
[1743390237165,6.05,1819.5,1819.2,5.563]
[1743390237327,6.05,1819.5,1819.3,5.4966]
[1743390238454,6.05,1819.5,1819.2,11.05988]
[1743390238968,6.05,1819.5,1819.2,16.55662]
[1743390239167,0.8256,1819.7,1819.3,5.49659]
[1743390239644,0.8256,1819.7,1819.3,5.49649]
[1743390239846,0.8256,1819.7,1819.4,5.4961]
[1743390240378,0.05,1819.9,1819.6,5.49554]
[1743390240581,0.05,1819.9,1819.7,5.562]
[1743390245671,0.05,1819.9,1819.8,5.4951]
[1743390246989,0.05,1819.9,1819.7,5.562]
[1743390247354,0.05,1819.9,1819.7,11.05739]
[1743390247853,0.05,1819.9,1819.7,5.562]
[1743390248954,0.05,1819.9,1819.8,6.2466]
[1743390249155,0.05,1819.9,1819.8,6.7966]
[1743390251994,0.05,1819.9,1819.8,21.2966]
[1743390253208,0.05,1819.9,1819.8,21.71696969]
[1743390254668,0.05,1819.9,1819.8,21.71696969]
[1743390256404,0.05,1819.9,1819.8,21.76476969]
[1743390257700,0.8135,1820.9,1820.4,6.29259]
[1743390257907,3.8135,1820.9,1820.5,5.558]
[1743390258507,3.8135,1820.9,1820.5,20.058]
[1743390258682,0.8135,1820.9,1820.5,20.058]
[1743390259083,3.8135,1820.9,1820.5,20.058]
[1743390260396,3.8135,1820.9,1820.5,5.558]
[1743390261106,0.7635,1820.7,1820.6,5.557]
[1743390261409,0.7635,1820.7,1820.6,5.556]
[1743390262509,0.7635,1820.7,1820.5,5.556]
[1743390267336,0.7635,1820.7,1820.2,15.58591654]
[1743390267337,3.7635,1820.7,1820.2,15.58591654]
[1743390267550,5.49364,1820.3,1820.1,31.712]
[1743390267708,11.17945837,1820.3,1820.2,5.555]
[1743390267905,5.68581837,1820.3,1820.2,5.555]
[1743390268126,3.0,1820.3,1820.2,5.555]
[1743390268434,3.7922,1820.3,1820.2,5.555]
[1743390269437,9.28579,1820.3,1820.2,5.555]
[1743390269625,8.4939,1820.2,1820.1,31.712]
[1743390269831,9.2861,1820.2,1820.1,31.712]
[1743390270137,3.7922,1820.2,1820.1,31.712]
[1743390271235,0.7922,1820.2,1820.1,31.712]
[1743390271443,0.7922,1820.3,1820.1,31.712]
[1743390272241,0.7922,1820.3,1820.2,5.554]
[1743390272536,6.05,1820.4,1820.2,5.554]
[1743390273714,6.05,1820.4,1820.2,11.04778]
[1743390273905,6.28459,1820.7,1820.2,11.04778]
[1743390274105,0.7922,1820.7,1820.2,16.54145]
[1743390274332,3.7922,1820.7,1820.2,11.04767]
[1743390275037,8.17864837,1820.6,1820.3,5.554]
[1743390275636,2.68581837,1820.6,1820.3,5.554]
[1743390276743,3.7922,1820.7,1820.3,11.04755]
[1743390277048,3.7922,1820.7,1820.3,16.5411]
[1743390277258,3.7922,1820.7,1820.3,11.04755]
[1743390277461,3.0,1820.7,1820.4,5.49322]
[1743390277756,3.0,1820.7,1820.4,6.31492]
[1743390277925,6.05,1820.8,1820.5,5.4928]
[1743390278566,6.05,1820.8,1820.4,6.31495]
[1743390279223,6.05,1820.8,1820.4,11.80809]
[1743390279423,6.05,1820.8,1820.5,5.49283]
[1743390280429,6.05,1820.8,1820.6,5.49263]
[1743390280642,0.8422,1820.9,1820.7,5.553]
[1743390282525,0.05,1820.9,1820.7,5.553]
[1743390286530,0.05,1820.9,1820.8,5.551]
[1743390293470,0.05,1820.9,1820.8,11.04309]
[1743390293676,0.05,1820.9,1820.8,5.551]
[1743390294872,0.05,1820.9,1820.8,11.59309]
[1743390295175,0.05,1820.9,1820.8,6.101]
[1743390295540,0.05,1820.9,1820.8,11.59309]
[1743390295739,0.05,1820.9,1820.8,6.101]
[1743390295937,0.05,1820.9,1820.7,6.27813]
[1743390296152,0.05,1820.9,1820.8,5.549]
[1743390298049,0.05,1820.9,1820.8,11.04109]
[1743390298265,0.05,1820.9,1820.8,11.59109]
[1743390298464,0.05,1820.9,1820.8,12.42109]
[1743390302677,0.05,1820.9,1820.8,6.87209]
[1743390302987,0.05,1820.9,1820.8,6.097]
[1743390303480,0.05,1820.9,1820.6,6.32268]
[1743390303665,0.05,1820.9,1820.7,5.547]
[1743390304381,8.98974837,1820.9,1820.8,5.547]
[1743390304586,3.49791837,1820.9,1820.8,5.547]
[1743390304750,8.98969837,1820.9,1820.8,5.547]
[1743390305882,3.49791837,1820.9,1820.8,5.547]
[1743390306778,9.54791837,1820.9,1820.8,5.547]
[1743390307483,9.54791837,1820.9,1820.5,31.708]
[1743390307484,9.54791837,1820.9,1820.7,5.546]
[1743390307779,11.39384785,1820.9,1820.5,31.708]
[1743390307978,5.49251,1820.7,1820.6,5.546]
[1743390308170,5.49251,1820.7,1820.5,31.708]
[1743390308371,0.7621,1820.6,1820.5,37.254]
[1743390308572,0.7621,1820.7,1820.5,37.254]
[1743390309882,3.0,1820.8,1820.5,37.254]
[1743390310085,3.0,1820.8,1820.5,42.7469]
[1743390311896,6.8621,1820.9,1820.5,42.7469]
[1743390312695,3.8121,1820.9,1820.5,42.7469]
[1743390313068,3.8121,1820.9,1820.5,37.254]
[1743390313291,3.8121,1820.9,1820.5,42.74697]
[1743390313471,9.30392,1820.9,1820.5,37.254]
[1743390314673,3.8121,1820.9,1820.5,37.254]
[1743390315668,3.8121,1820.9,1820.5,42.74694]
[1743390316072,3.8121,1820.9,1820.5,11.03894]
[1743390316270,0.05,1820.9,1820.6,5.49252]
[1743390316508,0.05,1820.9,1820.7,6.30076]
[1743390316812,0.05,1820.9,1820.5,11.03899]
[1743390317027,5.5418,1820.9,1820.5,6.3545]
[1743390317389,8.22761837,1820.9,1820.6,5.545]
[1743390317701,9.04511837,1820.9,1820.6,5.545]
[1743390320978,5.49227,1820.8,1820.4,1.11418741]
[1743390321207,0.8175,1820.6,1820.5,5.544]
[1743390321407,6.3102,1820.6,1820.5,5.544]
[1743390321793,0.8175,1820.6,1820.5,5.544]
[1743390323316,6.31019,1820.6,1820.3,31.704]
[1743390323518,8.17893837,1820.5,1819.9,6.30323]
[1743390323724,2.68581837,1820.0,1819.5,32.5145]
[1743390323908,2.68581837,1820.0,1819.7,5.544]
[1743390324228,6.05,1820.1,1819.9,5.49475]
[1743390324379,12.55331837,1820.3,1819.8,6.3036]
[1743390324603,6.50331837,1820.3,1819.8,6.3036]
[1743390324807,11.99692837,1820.3,1819.8,6.3036]
[1743390325305,11.99692837,1820.3,1819.9,14.5]
[1743390326212,9.31111,1820.3,1819.9,14.5]
[1743390326414,3.8175,1820.3,1819.9,19.99459]
[1743390327123,0.8175,1820.5,1820.1,0.8085]
[1743390327327,6.05,1820.6,1820.2,11.0377]
[1743390327723,3.0,1820.5,1820.3,14.5]
[1743390328123,6.3154,1820.3,1820.0,5.544]
[1743390329139,0.8218,1820.3,1820.0,5.544]
[1743390329522,8.73581837,1820.4,1820.0,5.544]
[1743390329729,14.22922837,1820.4,1820.0,5.544]
[1743390330439,8.73581837,1820.4,1820.0,11.03837]
[1743390331623,8.73581837,1820.4,1820.0,5.544]
[1743390331823,14.22916837,1820.4,1820.0,5.544]
[1743390332136,14.22916837,1820.4,1820.1,14.5]
[1743390332346,5.49385,1820.3,1820.2,5.543]
[1743390332545,14.22917837,1820.4,1820.2,5.543]
[1743390333249,5.49359,1820.3,1820.2,5.543]
[1743390335046,8.73581837,1820.4,1820.2,5.543]
[1743390335249,14.22911837,1820.4,1820.2,5.543]
[1743390335449,8.73581837,1820.4,1820.2,5.543]
[1743390335650,14.22914837,1820.4,1820.2,5.543]
[1743390336821,19.72268837,1820.4,1820.2,5.543]
[1743390337652,14.22914837,1820.4,1820.2,5.543]
[1743390339069,6.05,1820.4,1820.2,5.543]
[1743390339225,11.5433,1820.4,1820.2,6.3396]
[1743390339666,14.22911837,1820.4,1820.2,6.3396]
[1743390340101,14.22911837,1820.4,1820.2,5.543]
[1743390341698,5.49401,1820.2,1820.1,5.542]
[1743390342094,8.17982837,1820.2,1820.1,5.542]
[1743390345175,5.49422,1820.1,1819.8,33.59270206]
[1743390345479,2.68581837,1820.2,1819.9,5.542]
[1743390346054,6.2504,1820.3,1819.9,5.542]
[1743390346244,5.49402,1820.2,1819.9,5.542]
[1743390346787,6.2504,1820.3,1819.9,5.542]
[1743390347081,5.4939,1820.2,1819.9,5.542]
[1743390347972,5.49421,1820.1,1819.9,5.542]
[1743390350086,8.17971837,1820.2,1819.9,5.542]
[1743390350678,14.22971837,1820.2,1819.9,5.542]
[1743390352889,19.72386837,1820.2,1819.9,5.542]
[1743390353490,14.22971837,1820.2,1819.9,5.542]
[1743390354194,19.72383837,1820.2,1819.9,5.542]
[1743390355185,5.49422,1820.1,1819.9,5.542]
[1743390355387,5.49503,1819.9,1819.6,32.5345]
[1743390355595,8.18117837,1819.8,1819.7,5.54]
[1743390355795,8.49541,1819.7,1819.6,31.715]
[1743390356088,5.49661,1819.3,1818.9,32.5355]
[1743390356275,5.49661,1819.3,1818.9,47.0355]
[1743390356276,2.68581837,1819.2,1818.9,47.0355]
[1743390356460,2.68581837,1819.2,1819.0,5.54]
[1743390356789,8.18277837,1819.2,1819.0,5.54]
[1743390356960,13.67999837,1819.2,1819.0,5.54]
[1743390357287,9.55077821,1819.2,1819.0,5.54]
[1743390357485,8.18277837,1819.2,1819.0,5.54]
[1743390358780,8.18292837,1819.2,1819.0,5.54]
[1743390360220,5.49722,1819.1,1819.0,5.54]
[1743390360497,5.49752,1819.0,1818.9,31.716]
[1743390360698,5.49814,1818.8,1818.6,5.541]
[1743390360902,10.99581,1818.9,1818.6,5.541]
[1743390361204,10.99581,1818.9,1818.6,20.041]
[1743390361703,5.49783,1818.9,1818.6,5.541]
[1743390362219,5.49783,1818.9,1818.6,20.041]
[1743390365391,6.05,1819.1,1818.7,6.27593]
[1743390365600,6.05,1819.1,1818.7,6.27573]
[1743390365773,6.05,1819.1,1818.8,5.4979]
[1743390365978,6.05,1819.1,1818.9,14.5]
[1743390366318,9.05,1819.1,1819.0,5.541]
[1743390366528,2.68581837,1819.5,1819.0,5.541]
[1743390366529,6.05,1819.4,1819.0,11.81602]
[1743390366681,3.0,1819.3,1819.0,6.3185]
[1743390367390,3.0,1819.3,1819.1,14.5]
[1743390368105,8.49662,1819.3,1819.1,14.5]
[1743390368306,0.849662,1819.2,1819.1,5.541]
[1743390368506,8.49662,1819.3,1819.1,5.541]
[1743390368807,13.99346,1819.3,1819.1,5.541]
[1743390369013,8.96623837,1819.2,1818.8,31.732]
[1743390369210,5.49722,1819.1,1818.8,31.732]
[1743390369379,10.71252421,1819.2,1818.9,5.541]
[1743390369580,8.49674,1819.3,1818.9,5.541]
[1743390369779,3.0,1819.3,1819.0,0.7775]
[1743390370392,3.0,1819.3,1819.0,6.27489]
[1743390370594,3.0,1819.3,1819.0,0.7775]
[1743390371987,1.66765884,1819.7,1819.3,0.7775]
[1743390371988,11.54541,1819.7,1819.3,0.7775]
[1743390372307,11.54541,1819.7,1819.4,5.54]
[1743390372308,6.05,1819.7,1819.4,5.54]
[1743390372690,3.0,1819.6,1819.4,5.54]
[1743390373117,8.49577,1819.6,1819.4,5.54]
[1743390373414,3.0,1819.6,1819.4,5.54]
[1743390374504,6.05,1820.1,1819.5,0.8319]
[1743390374702,6.05,1820.1,1819.9,0.8319]
[1743390375019,5.49407,1820.2,1820.0,5.54]
[1743390375318,3.0,1820.1,1820.0,5.54]
[1743390376116,6.05,1820.5,1820.2,5.49386]
[1743390376117,6.8241,1820.5,1820.2,5.49386]
[1743390376299,6.05,1820.5,1820.1,5.49407]
[1743390376497,3.0,1820.4,1820.2,5.49387]
[1743390376792,3.0,1820.4,1820.2,6.32577]
[1743390377618,6.05,1820.5,1820.3,5.49335]
[1743390377923,6.05,1820.5,1820.4,5.539]
[1743390379913,3.0,1820.6,1820.4,5.539]
[1743390382426,8.49292,1820.6,1820.4,5.539]
[1743390382624,5.49318,1820.5,1820.2,1.90705749]
[1743390382827,5.49418,1820.2,1819.8,0.8319]
[1743390383123,5.49501,1819.9,1819.7,37.267]
[1743390383553,8.4951,1819.8,1819.7,37.267]
[1743390385806,3.0,1819.8,1819.7,37.267]
[1743390386623,3.0,1819.9,1819.7,37.267]
[1743390387391,8.49484,1819.9,1819.7,37.267]
[1743390387593,13.98988,1819.9,1819.7,37.267]
[1743390387931,5.4951,1819.8,1819.7,37.267]
[1743390389325,5.49563,1819.7,1819.3,33.59904357]
[1743390389516,10.9913,1819.7,1819.4,5.535]
[1743390389694,5.49563,1819.7,1819.4,5.535]
[1743390390310,11.78807,1819.8,1819.4,5.535]
[1743390390505,6.29281,1819.8,1819.4,5.535]
[1743390390705,9.05,1819.9,1819.5,5.49575]
[1743390391332,14.54483,1819.9,1819.5,5.49575]
[1743390391699,9.05,1819.9,1819.5,5.49575]
[1743390391910,14.54484,1819.9,1819.5,5.49575]
[1743390393740,9.05,1819.9,1819.3,32.4962]
[1743390394041,5.49615,1819.5,1819.4,5.535]
[1743390395153,5.49631,1819.4,1819.3,31.719]
[1743390395445,5.49631,1819.4,1819.3,37.253]
[1743390397115,6.29385,1819.5,1819.3,37.253]
[1743390397451,5.49631,1819.4,1819.3,37.253]
[1743390397647,6.05,1819.4,1819.3,37.800868]
[1743390397816,6.05,1819.4,1819.3,43.52681]
[1743390398225,6.05,1819.4,1819.3,38.0302]
[1743390398722,6.05,1819.4,1819.3,37.253]
[1743390400753,6.05,1819.4,1819.3,42.74961]
[1743390401416,6.05,1819.4,1819.3,43.52681]
[1743390402325,6.05,1819.4,1819.3,31.719]
[1743390402529,6.05,1819.4,1819.3,37.253]
[1743390403653,5.49604,1819.5,1819.3,5.534]
[1743390403823,10.9923,1819.5,1819.4,5.534]
[1743390404022,6.67504,1819.5,1819.4,5.534]
[1743390404423,5.49604,1819.5,1819.4,5.534]
[1743390404650,3.7977,1819.6,1819.4,5.534]
[1743390404856,9.29343,1819.6,1819.4,5.534]
[1743390405860,5.49601,1819.5,1819.4,5.534]
[1743390410358,17.47524837,1819.6,1819.4,5.534]
[1743390410531,9.29343,1819.6,1819.4,5.534]
[1743390410857,9.29346,1819.6,1819.4,5.534]
[1743390411224,6.05,1819.7,1819.4,11.0303]
[1743390411427,6.05,1819.7,1819.4,5.534]
[1743390411624,5.49583,1819.6,1819.4,5.534]
[1743390412123,5.49583,1819.6,1819.5,5.533]
[1743390412124,6.26263,1819.6,1819.5,5.533]
[1743390412331,11.54551,1819.7,1819.5,5.533]
[1743390412729,5.49571,1819.6,1819.5,5.533]
[1743390417565,11.54548,1819.7,1819.5,5.533]
[1743390419798,5.49571,1819.6,1819.5,5.533]
[1743390420149,11.5455,1819.7,1819.5,5.533]
[1743390420349,6.05,1819.7,1819.5,5.533]
[1743390420751,11.54543,1819.7,1819.5,5.533]
[1743390421085,5.49543,1819.7,1819.5,5.533]
[1743390422760,8.49513,1819.8,1819.5,5.533]
[1743390422985,13.99045,1819.8,1819.5,5.533]
[1743390423189,5.49542,1819.7,1819.5,5.533]
[1743390424490,5.49571,1819.6,1819.5,5.533]
[1743390424671,5.49542,1819.7,1819.5,5.533]
[1743390425681,5.49571,1819.6,1819.5,5.533]
[1743390426393,5.49646,1819.4,1819.2,32.85168992]
[1743390426569,5.49646,1819.4,1819.3,5.53]
[1743390427802,10.99303,1819.4,1819.2,31.726]
[1743390428098,10.99303,1819.4,1819.3,5.53]
[1743390428399,5.49646,1819.4,1819.3,5.53]
[1743390429819,5.49661,1819.3,1819.2,31.726]
[1743390430099,8.49661,1819.3,1819.2,31.726]
[1743390430305,9.30331,1819.3,1819.2,31.726]
[1743390430462,15.35331,1819.3,1819.2,31.726]
[1743390430891,5.49752,1819.0,1818.9,5.53]
[1743390431091,5.49786,1818.9,1818.8,5.53]
[1743390431410,5.49786,1818.9,1818.1,3.47126615]
[1743390431411,9.30664,1818.2,1818.1,0.05]
[1743390431692,13.47308637,1818.2,1818.1,0.05]
[1743390431995,13.47308637,1818.2,1817.3,6.3527]
[1743390431996,5.50235,1817.5,1817.3,6.3527]
[1743390432312,5.50235,1817.5,1817.3,5.53]
[1743390432313,5.50231,1817.5,1817.3,5.53]
[1743390432661,5.50236,1817.4,1817.3,5.53]
[1743390433186,5.50231,1817.5,1817.3,5.53]
[1743390433381,5.50179,1817.6,1817.3,5.53]